Cogmind - Beta 13 @@@ ROGUE MODE // 2024.07.17 @ 21:48:51 Player: Sionnis Result: Destroyed by 25-DED(g) with Beamcaster Performance ------------- Evolutions (0) 0 Regions Visited (2) 400 Robots Destroyed (9) 45 Value Destroyed (202) 202 Prototype IDs (0) 0 Alien Tech Used (0) 0 Bonus (0) 0 TOTAL SCORE: 647 Bonus ------- None Cogmind --------- Core Integrity 0/250 Matter 300/300 Energy 99/100 System Corruption 6% Temperature Cool (9) Movement Core (50) Location -10/Mines Parts ------- > --- POWER (1) -------- (None) > --- PROPULSION (2) --- (None) > --- UTILITY (2) ------ (None) > --- WEAPON (2) ------- (None) > --- INVENTORY (5) ---- Light Ion Engine Signal Interpreter Datajack Datajack Peak State ------------ > --- POWER ------------ Light Ion Engine > --- PROPULSION ------- Light Treads Light Treads > --- UTILITY ---------- Small Storage Unit Targeting Computer > --- WEAPON ----------- EM Pulse Gun EM Pulse Gun > --- INVENTORY -------- Light Ion Engine Compact Wheel Signal Interpreter Light Assault Rifle [Rating: 7] Favorites ----------- Power Light Ion Engine Engine Light Ion Engine Propulsion Light Treads Treads Light Treads Wheel Compact Wheel Utility Small Storage Unit Storage Small Storage Unit Processor Targeting Computer Weapon EM Pulse Gun Energy Gun EM Pulse Gun Ballistic Gun Light Assault Rifle Build | -11 -10 -10 ------- Run | Yrd Mat Min Slots Evolved . | . . . Power . | . . . Propulsion . | . . . Utility . | . . . Weapon . | . . . Parts Attached 13 | 6 3 4 Power 2 | 1 . 1 Engine 2 | 1 . 1 Core . | . . . Reactor . | . . . Propulsion 3 | 2 . 1 Treads 2 | 2 . . Leg . | . . . Wheel 1 | . . 1 Hover . | . . . Flight . | . . . Utility 2 | 1 1 . Device . | . . . Storage 1 | 1 . . Processor 1 | . 1 . Hackware . | . . . Protection . | . . . Artifact . | . . . Weapon 6 | 2 2 2 Energy Gun 4 | 2 1 1 Energy Cannon . | . . . Ballistic Gun 2 | . 1 1 Ballistic Cannon . | . . . Launcher . | . . . Special Weapon . | . . . Impact Weapon . | . . . Slashing Weapon . | . . . Piercing Weapon . | . . . Special Melee Weapon . | . . . Unidentified Prototypes . | . . . Parts Lost 9 | . 1 8 Power 2 | . . 2 Propulsion 2 | . . 2 Utility 1 | . . 1 Weapon 4 | . 1 3 Highest Loss Streak 7 | . 1 7 To Critical Strikes . | . . . Average Slot Usage (%) 81 | . 91 61 Engine 11 | . 14 7 Treads 24 | . 28 16 Storage 12 | . 14 10 Processor 6 | . 5 7 Energy Gun 23 | . 26 15 Ballistic Gun 1 | . 1 2 Naked Turns 53 | . . 53 Heaviest Build 12 | 12 12 12 Greatest Support 40 | 40 40 40 Greatest Overweight (x) 1 | . . 1 Average Overweight (x) . | . . . Largest Inventory Capacity 8 | 8 8 8 Average Capacity 7 | 6 8 7 Most Carried 6 | 3 6 6 Average Carried 3 | 1 3 5 Final Capacity 8 | 8 8 5 Final Carried 6 | 3 6 4 Class Distribution -------------------- 100% | Mutant Dominant Class ---------------- Mutant | -10/Materials Mutant | -10/Mines Resources | -11 -10 -10 ----------- Run | Yrd Mat Min Matter Collected 311 | 199 92 20 Remotely . | . . . Salvage Created 313 | . 242 71 Parts 20 | . 14 6 Haulers Intercepted . | . . . Recyclers Shooed . | . . . Parts Field Recycled . | . . . Retrieved Matter . | . . . Parts Self-Destructed . | . . . Prevented . | . . . Kills | -11 -10 -10 ------- Run | Yrd Mat Min Combat Hostiles Destroyed 7 | . 4 3 Guns 6 | . 3 3 AOE 1 | . 1 . Classes Destroyed 6 | . 3 3 Worker 1 | . . 1 Operator 1 | . 1 . Watcher 1 | . 1 . Swarmer 2 | . . 2 Grunt 4 | . 4 . Assembled 1 | . . 1 Best Kill Streak 3 | . 3 1 Combat Bots Only 2 | . 2 1 Max Kills in Single Turn 1 | . 1 1 Gunslinging . | . . . Exploded 1 | . 1 . Melee . | . . . Uniques/NPCs Destroyed . | . . . Combat | -11 -10 -10 -------- Run | Yrd Mat Min Hostile Shots Fired 56 | . 12 44 Missed 11 | . 2 9 Damage Taken 936 | . 151 785 Core 268 | . 27 241 Absorbed by Shields . | . . . Core Remaining (%) 100 | 100 . . Volleys Fired 29 | . 13 16 Largest 2 | . 2 2 Hottest 80 | . 80 80 Shots Fired 57 | . 26 31 Gun 57 | . 26 31 Cannon . | . . . Launcher . | . . . Special . | . . . Kinetic 9 | . 1 8 Thermal . | . . . Explosive . | . . . Electromagnetic 48 | . 25 23 Robot Hit Streak 5 | . 5 4 Robot Miss Streak 6 | . 2 6 Penetration Max . | . . . Secondary Targets 1 | . 1 . Max Gunslinging Chain 1 | . 1 . Shots Hit Robots 32 | . 17 15 Core Hits 16 | . 8 8 Critical Kills . | . . . Critical Parts Destroyed . | . . . Critical Strikes . | . . . Melee Attacks . | . . . Impact . | . . . Slashing . | . . . Piercing . | . . . Sneak Attacks . | . . . Combat Hostiles . | . . . Follow-up Attacks . | . . . Damage Inflicted 690 | . 361 329 Guns 434 | . 270 164 Cannons . | . . . Explosions 228 | . 91 137 Melee . | . . . Ramming 28 | . . 28 Kinetic 43 | . . 43 Thermal 228 | . 91 137 Explosive . | . . . Electromagnetic 391 | . 270 121 Impact . | . . . Slashing . | . . . Piercing . | . . . Highest Corruption 6 | . 2 6 Average Corruption 2 | . 1 3 Corruption Purged . | . . . Corruption Blocked . | . . . Effects 3 | . 1 2 Message Errors 2 | . 1 1 Data Loss (major) 1 | . . 1 Overload Shots . | . . . Overflow Damage 24 | . . 24 Projectiles . | . . . Explosions 24 | . . 24 Melee . | . . . Knockbacks . | . . . Impact . | . . . Kinetic . | . . . Secondary . | . . . Self-Inflicted Damage 127 | . 26 101 Shots 3 | . 1 2 Rammed 3 | . . 3 Targets Rammed 3 | . . 3 Kicked . | . . . Crushed . | . . . Highest Temperature 126 | . 84 126 Average Temperature 41 | . 28 54 Received Heat Transfer 81 | . 72 9 Siege Activations . | . . . Robots Corrupted . | . . . Combat Hostiles . | . . . Parts Fried 3 | . 3 . Impact Corruptions . | . . . Robots Melted . | . . . Combat Hostiles . | . . . Parts Melted . | . . . Heat Transferred 250 | . 50 200 Parts Sabotaged . | . . . Parts Stolen . | . . . Parts Stripped . | . . . Power Chain Reactions 4 | . 2 2 Alert | -11 -10 -10 ------- Run | Yrd Mat Min Peak Influence 152 | . 152 44 Initial . | . . . Average 55 | . 82 26 Maximum Alert Level . | . . . Low Security (%) 100 | 100 100 100 Level 1 . | . . . Level 2 . | . . . Level 3 . | . . . Level 4 . | . . . Level 5 . | . . . High Security . | . . . Max Security . | . . . Squads Dispatched 1 | . 1 . Investigation . | . . . Extermination . | . . . Reinforcement 1 | . 1 . Assault . | . . . Garrison . | . . . Intercept . | . . . Searches Triggered . | . . . Construction Impeded . | . . . Haulers Reinforced . | . . . Active Scanning Responses . | . . . Cargo Convoy Interrupts . | . . . Stealth | -11 -10 -10 --------- Run | Yrd Mat Min Distress Signals 1 | . 1 . Communications Jammed . | . . . Distress Signals . | . . . Times Spotted 24 | . 7 17 Peak Tracking Total 9 | . 4 9 Tactical Retreats 2 | . . 2 Traps | -11 -10 -10 ------- Run | Yrd Mat Min Traps Triggered 1 | . 1 . Indirectly . | . . . Trap Hack Attempts . | . . . Triggered . | . . . Disarmed . | . . . Reprogrammed . | . . . Reused . | . . . Traps Extracted . | . . . Installed . | . . . Triggered . | . . . Machines | -11 -10 -10 ---------- Run | Yrd Mat Min Machines Disabled . | . . . Max in Single Turn . | . . . Machines Repaired . | . . . Machines Dismantled . | . . . Machines Sabotaged . | . . . Overloaded Fab Kills . | . . . Hacking | -11 -10 -10 --------- Run | Yrd Mat Min Machines Accessed 2 | . 2 . Terminals 2 | . 2 . Fabricators . | . . . Repair Stations . | . . . Recycling Units . | . . . Scanalyzers . | . . . Garrison Access . | . . . Total Hacks 6 | . 6 . Successful 3 | . 3 . Failed 2 | . 2 . Catastrophic 1 | . 1 . Database Lockouts 1 | . 1 . Manual 4 | . 4 . Terminals 6 | . 6 . Fabricators . | . . . Repair Stations . | . . . Recycling Units . | . . . Scanalyzers . | . . . Garrison Access . | . . . Terminal Hacks 2 | . 2 . Robot Analysis 1 | . 1 . Hauler Manifests 1 | . 1 . Fabricator Hacks . | . . . Repair Station Hacks . | . . . Recycling Unit Hacks . | . . . Scanalyzer . | . . . Garrison Access Hacks . | . . . Unauthorized Hacks 1 | . 1 . Terminals 1 | . 1 . Operators 1 | . 1 . Fabricators . | . . . Repair Stations . | . . . Recycling Units . | . . . Scanalyzers . | . . . Garrison Access . | . . . Data Cores Recovered . | . . . Used . | . . . Hacking Detections 2 | . 2 . Full Trace Events 1 | . 1 . Feedback Events 1 | . 1 . Corruption 1 | . 1 . Feedback Blocked . | . . . Robot Schematics Acquired . | . . . Robots Built . | . . . Authchips . | . . . Time . | . . . Total Robot Build Rating . | . . . Part Schematics Acquired . | . . . Parts Built . | . . . Authchips . | . . . Time . | . . . Total Part Build Rating . | . . . Parts Repaired . | . . . Time . | . . . Parts Recycled . | . . . Recycled Matter . | . . . Retrieved Matter . | . . . Retrieved Components . | . . . Parts Scanalyzed . | . . . Part Schematics Acquired . | . . . Parts Damaged . | . . . Bothacking | -11 -10 -10 ------------ Run | Yrd Mat Min Used RIF Installer . | . . . Robots Hacked . | . . . Non-combat . | . . . Combat . | . . . Robot Hacks Applied . | . . . Relay Couplers Released . | . . . Fabnet Peak Effective % . | . . . Robots Rewired . | . . . Allies Hacked . | . . . Hacks Repelled . | . . . Allies | -11 -10 -10 -------- Run | Yrd Mat Min Total Allies . | . . . Largest Group . | . . . Highest-Rated Group . | . . . Highest-Rated Ally . | . . . Total Orders . | . . . Ally Attacks . | . . . Total Damage . | . . . Kills . | . . . Allies Corrupted . | . . . Allies Melted . | . . . Intel | -11 -10 -10 ------- Run | Yrd Mat Min Robot Analysis Total 1 | . 1 . Derelict Logs Recovered 1 | . . 1 Drone Launches . | . . . Drone Recoveries . | . . . Exploration | -11 -10 -10 ------------- Run | Yrd Mat Min Turns Passed 716 | 96 422 198 Spaces Moved 446 | 55 227 164 Core 107 | 3 . 104 Treads 325 | 52 227 46 Legs . | . . . Wheels 14 | . . 14 Hover . | . . . Flight . | . . . Fastest Speed 50 | 50 160 50 Average Speed 132 | 154 160 86 Slowest Speed 160 | 160 160 160 Overloaded Moves . | . . . Propulsion Burnouts . | . . . Robots Hopped . | . . . Cave-ins Triggered . | . . . Exploration Rate (%) 29 | 4 46 39 Regions Visited 2 Branch Regions 1 Pre-discovered Areas . | . . . Known Exits Taken . | . . . Unknown Exits Taken 2 | 1 1 . Scrap Searched . | . . . Spaces Dug . | . . . Terrain Destroyed 17 | . 6 11 Melee . | . . . Projectile . | . . . AOE 17 | . 6 11 Terrain Rammed . | . . . Walls Destroyed . | . . . Machines Disabled . | . . . Actions | -11 -10 -10 --------- Run | Yrd Mat Min Total 512 | 63 260 189 Wait 15 | . 14 1 Move 444 | 54 226 164 Hop . | . . . Pick Up 7 | 3 3 1 Fast Attach 8 | 6 2 . Attach 4 | . 1 3 Detach 1 | . 1 . Swap 1 | . . 1 Drop . | . . . Fire 29 | . 13 16 Melee . | . . . Ram 3 | . . 3 Kick . | . . . Crush . | . . . Escape Stasis . | . . . Rewire . | . . . Trap . | . . . Miscellaneous . | . . . Route ------- -11/Scrapyard -10/Materials -10/Mines (discovered 1 exit: [*Mat]) History --------- Turn | Location | Event 4 | -11/Scrapyard | Discovered new exit (range 15) 97 | -11/Scrapyard | Entered Materials 158 | -10/Materials | Central database locked down 307 | -10/Materials | Build established: Mutant 431 | -10/Materials | Discovered new exit (range 8) 519 | -10/Materials | Entered Mines 599 | -10/Mines | Assembled infested the area 641 | -10/Mines | Core integrity fell below 50% 664 | -10/Mines | Released all parts (2) 665 | -10/Mines | Core integrity fell below 20% 666 | -10/Mines | Learned Materials trap positions 672 | -10/Mines | Discovered new exit (range 6) 673 | -10/Mines | Lost 7 parts (1p2n1u3w) 711 | -10/Mines | Joined a pair of Derelicts in attacking an 0b10 outpost 717 | -10/Mines | Destroyed by 25-DED(g) with Beamcaster Last Messages --------------- Released Com. Wheel. Released Sml. Storage Unit. Acquired derelict log, extracted data. Data stored: Materials trap records. EXIT=FOUND QQYCUR |L>OSG2SRUMN> FILB=KFAW3 Slammed into K-01 Serf. K-01 Serf destroyed. Acquired 10 matter. Slammed into K-01 Serf. U-05 Engineer lays Concrete. U-05 Engineer destroyed. The unstable cave ceiling collapses. K-01 Serf destroyed. A derelict emerges from the shadows: "We've had our eye on this brand new outpost for a little while, just waiting for an opportunity to strike. Need some help?" Y-45 Defender suffers critical hit (Burn). X9-B4L(g) suffers critical hit (Burn). Map ----- +----------------------------------------------------+ | | | | | | | ?????????????????????????????????????????????????? | | ?????????????????????????????????????????????????? | | ?????????????????????????????????????????????????? | | ?????????????????????????????????????????????????? | | ?????????????????????????????????????????????????? | | ?????????????????????????????????????????????????? | | ?????????????????????????????????????????????????? | | ?????????????????????????????????????????????????? | | ?????????????????????????????????????????????????? | | ?????????????????????????????????????????????????? | | ?????????????????????????????????????????????????? | | ?????????????????????????????????????????????????? | | ?????????????????????????????????????????????????? | | ????????????? ???#?????#????????????????????????? | | ?????????????# ?? ???? ####????????????????????? | | ?????????????? ? ??? ##???????????????????? | | ??????????????? ? ??? ###?????????????????? | | ????????????????? ? ?? ###???????????????? | | ?????????????????? ? ?% # #???????????????? | | ???????????????????? # # ##??????????????? | | ?????????????????????# # #??????????????? | | ??????????????????????? = a #??????????????? | | ?????????????????????####@ # ##?????????????? | | ????????????????????## #?????????????? | | ????????????????????# #???????????? | | ????????????????????# %?????????? | | ?????????????###?#### % ?????????? | | ????????????##" ## #??????????? | | ????????????#"" # g != # # ##??????? #?? | | ????????????#!! / !%* !# ####???????? ##? | | ????????????#!] g a |%* =%####?????????? ?? | | ????????????#"" # ##????????? ??? | | ????????????##"Y## #????????# #??? | | ?????????????#### #??????? ???? | | ????????????????## ### #??????? ????? | | ?????????????????# ###??# #??????? #?????? | | ?????????????????# #?????# ##????## ##????? | | ?????????????????# #??????# ##### ##???? | | ?????????????????# #??????## ## ##??? | | ???????????####### ######### * # ## #??? | | ?????????# =%! # [ #??? | | ???????????## ########### % ## #?? | | ????????????????????##### # # ###???! #? | | ?????????????????#### ## # # ##??????? ]! # | | ?????????????????# # # # #??????????#### | | ????????????????# ## ## # #???####??????? | | ????????????????# #### #= #??## ##?????? | +----------------------------------------------------+ Best States ------------- Heat Dissipation 25 Energy Generation 10 Energy Capacity 125 Matter Stores 300 Matter Capacity 300 Sight Range 16 Terrain Scan Density 10 Evasion (%) 50 Targeting Accuracy 5 Recoil Reduction 2 Item Schematics ----------------- None Robot Schematics ------------------ None Fabricated ------------ Nothing Alien Tech Used ----------------- None Achievements -------------- None Challenges ------------ None Game ------ Seed BombardmentDataPendant Manual? 1 Play Time 00:07:16 Cumulative 433.8 hours Start 2024.07.17 @ 21:43:48 End 2024.07.17 @ 21:48:51 Sessions 1 Manual Loads 0 Difficulty Rogue Special Mode None Game No. 251 Rogue 251 Adventurer 0 Explorer 0 Win Type - Total 29 Types 18/2/2/3/1/1/1/1/0 Lore% 84 Gallery% 93 Achievement% 95 Wizard Run 0 Options --------- Layout 1 ASCII 0 Keyboard 0 Movement Numpad Keybinds 0 Fullscreen 1 Font 24/Smallcaps Map View 50x35 Zoom Use 0% Tactical HUD 1 Map Filters NONE Filters NONE Steam 1 RUN: 844ab561-951e-4384-bd54-cf7daad17c98